[Event "Championnat du monde jeunes U12"]
[Date "2024.11.20"]
[White "Baturin-Vinogradov, Miroslav"]
[Black "Radnaev, Leo"]
[WhiteElo "2048"]
[BlackElo "1990"]
[Round "6.17"]
[Result "1-0"]
[TimeControl "5400+30"]

1. d4 {[%clk 1:30:56]} 1... Nf6 {[%clk 1:30:59]} 2. c4 {[%clk 1:31:15]} 2... g6
{[%clk 1:31:25]} 3. g3 {[%clk 1:31:36]} 3... Bg7 {[%clk 1:31:48]} 4. Bg2 {[%clk
1:31:59]} 4... O-O {[%clk 1:32:11]} 5. Nc3 {[%clk 1:32:24]} 5... d6 {[%clk
1:32:35]} 6. Nf3 {[%clk 1:32:44]} 6... Nc6 {[%clk 1:32:47]} 7. O-O {[%clk
1:32:33]} 7... a6 {[%clk 1:33:02]} 8. b3 {[%clk 1:22:05]} 8... Bd7 {[%clk
1:29:26]} 9. Bb2 {[%clk 1:19:55]} 9... Rb8 {[%clk 1:27:28]} 10. Rc1 {[%clk
1:15:35]} 10... b5 {[%clk 1:19:37]} 11. d5 {[%clk 1:10:09]} 11... Na5 {[%clk
1:03:30]} 12. cxb5 {[%clk 1:09:48]} 12... axb5 {[%clk 1:03:21]} 13. Nd4 {[%clk
1:05:53]} 13... e6 {[%clk 0:52:38]} 14. dxe6 {[%clk 0:54:20]} 14... fxe6 {[%clk
0:52:41]} 15. Qd2 {[%clk 0:41:12]} 15... c5 {[%clk 0:39:35]} 16. Nf3 {[%clk
0:39:02]} 16... b4 {[%clk 0:21:58]} 17. Nb1 {[%clk 0:38:20]} 17... Qb6 {[%clk
0:16:41]} 18. Rcd1 {[%clk 0:30:39]} 18... Nb7 {[%clk 0:13:39]} 19. Ng5 {[%clk
0:18:22]} 19... d5 {[%clk 0:11:19]} 20. Qc2 {[%clk 0:11:25]} 20... Rbd8 {[%clk
0:07:51]} 21. Nd2 {[%clk 0:10:56]} 21... Nd6 {[%clk 0:06:49]} 22. e4 {[%clk
0:09:06]} 22... Ndxe4 {[%clk 0:02:08]} 23. Ndxe4 {[%clk 0:08:47]} 23... dxe4
{[%clk 0:01:31]} 24. Nxe4 {[%clk 0:08:27]} 24... Nxe4 {[%clk 0:00:58]} 25. Bxe4
{[%clk 0:07:34]} 25... Bc6 {[%clk 0:00:36]} 26. Bxg7 {[%clk 0:06:42]} 26... Kxg7
{[%clk 0:00:50]} 27. Qb2+ {[%clk 0:05:25]} 27... Kf7 {[%clk 0:01:06]} 28. Qe5
{[%clk 0:04:57]} 28... Bxe4 {[%clk 0:00:37]} 29. Qxe4 {[%clk 0:05:20]} 29... Qc7
{[%clk 0:00:38]} 30. Rfe1 {[%clk 0:05:01]} 30... Rd6 {[%clk 0:00:32]} 31. Qf4+
{[%clk 0:05:00]} 31... Ke7 {[%clk 0:00:55]} 32. Qh4+ {[%clk 0:05:02]} 32... Ke8
{[%clk 0:01:00]} 33. Rxd6 {[%clk 0:05:09]} 33... Qxd6 {[%clk 0:01:25]} 34. Qxh7
{[%clk 0:05:21]} 34... e5 {[%clk 0:01:08]} 35. Qg7 {[%clk 0:04:46]} 35... Rf6
{[%clk 0:01:08]} 36. Qg8+ {[%clk 0:02:34]} 36... Ke7 {[%clk 0:01:26]} 37. Qh7+
{[%clk 0:02:28]} 37... Kf8 {[%clk 0:01:26]} 38. Qh6+ {[%clk 0:02:00]} 38... Kf7
{[%clk 0:01:31]} 39. Qe3 {[%clk 0:01:23]} 39... Rf5 {[%clk 0:01:14]} 40. Qe2
{[%clk 0:01:26]} 40... Ke7 {[%clk 0:00:32]} 41. Rd1 {[%clk 0:01:14]} 41... Qc6
{[%clk 0:00:57]} 42. Qd2 {[%clk 0:01:16]} 42... Qc7 {[%clk 0:00:40]} 43. Qd5
{[%clk 0:01:04]} 43... Rf6 {[%clk 0:00:39]} 44. Qg8 {[%clk 0:01:16]} 44... Qb6
{[%clk 0:00:32]} 45. Qg7+ {[%clk 0:01:29]} 45... Ke8 {[%clk 0:00:36]} 46. Qd7+
{[%clk 0:01:42]} 46... Kf8 {[%clk 0:01:06]} 47. Qc8+ {[%clk 0:01:00]} 47... Kg7
{[%clk 0:01:07]} 48. Qe8 {[%clk 0:00:57]} 48... c4 {[%clk 0:00:35]} 49. Rd7+
{[%clk 0:00:51]} 49... Kh6 {[%clk 0:01:03]} 50. Qh8+ {[%clk 0:01:06]} 50... Kg5
{[%clk 0:01:32]} 51. Qh4+ {[%clk 0:01:19]} 51... Kf5 {[%clk 0:02:02]} 52. Qxc4
{[%clk 0:01:09]} 52... g5 {[%clk 0:00:37]} 53. Qd3+ {[%clk 0:01:05]} 53... Ke6
{[%clk 0:00:40]} 54. Qd5+ {[%clk 0:01:25]} 54... Kf5 {[%clk 0:01:09]} 55. Qf3+
{[%clk 0:01:01]} 55... Ke6 {[%clk 0:00:42]} 56. Qg4+ {[%clk 0:00:57]} 56... Rf5
{[%clk 0:01:06]} 57. Re7+ {[%clk 0:00:41]} 57... Kxe7 {[%clk 0:00:53]} 58. Qxf5
{[%clk 0:01:05]} 58... Qd4 {[%clk 0:00:54]} 59. Qxg5+ {[%clk 0:01:29]} 59... Ke6
{[%clk 0:00:54]} 60. Qg6+ {[%clk 0:01:18]} 60... Ke7 {[%clk 0:00:36]} 61. Qc2
{[%clk 0:01:26]} 61... Qc3 {[%clk 0:00:55]} 62. Qe2 {[%clk 0:01:17]} 62... Qc1+
{[%clk 0:01:23]} 63. Kg2 {[%clk 0:01:20]} 63... Qc6+ {[%clk 0:01:50]} 64. f3
{[%clk 0:01:35]} 64... Kf6 {[%clk 0:01:55]} 65. h4 {[%clk 0:01:50]} 65... Qc1
{[%clk 0:01:40]} 66. h5 {[%clk 0:01:53]} 66... Qg5 {[%clk 0:00:54]} 67. Qa6+
{[%clk 0:01:03]} 67... Ke7 {[%clk 0:00:58]} 68. Qb7+ {[%clk 0:01:15]} 68... Kd8
{[%clk 0:00:59]} 69. Qxb4 {[%clk 0:01:02]} 69... Qxh5 {[%clk 0:01:27]} 70. Qh4+
{[%clk 0:01:23]} 70... Qxh4 {[%clk 0:01:36]} 71. gxh4 {[%clk 0:01:52]} 1-0

[Variant "Standard"]
[Site "Europe Echecs"]

[Event "Championnat du monde jeunes U12"]
[Date "2024.11.20"]
[White "Ritzerveld, Noah"]
[Black "Skytte, Robert"]
[WhiteElo "2285"]
[BlackElo "1925"]
[Round "6.18"]
[Result "1/2-1/2"]
[TimeControl "5400+30"]

1. e4 {[%clk 1:30:58]} 1... c5 {[%clk 1:30:53]} 2. Nf3 {[%clk 1:31:24]} 2... Nc6
{[%clk 1:31:19]} 3. d4 {[%clk 1:31:49]} 3... cxd4 {[%clk 1:31:45]} 4. Nxd4
{[%clk 1:32:15]} 4... g6 {[%clk 1:32:10]} 5. c4 {[%clk 1:32:39]} 5... Bg7 {[%clk
1:32:38]} 6. Be3 {[%clk 1:33:00]} 6... Nf6 {[%clk 1:33:03]} 7. Nc3 {[%clk
1:33:24]} 7... O-O {[%clk 1:33:28]} 8. Be2 {[%clk 1:32:47]} 8... b6 {[%clk
1:33:46]} 9. f3 {[%clk 1:28:02]} 9... Bb7 {[%clk 1:34:05]} 10. Qd2 {[%clk
1:25:56]} 10... a6 {[%clk 1:34:26]} 11. O-O {[%clk 1:24:30]} 11... Nxd4 {[%clk
1:28:55]} 12. Bxd4 {[%clk 1:24:29]} 12... d6 {[%clk 1:28:05]} 13. Rac1 {[%clk
1:22:57]} 13... Bc6 {[%clk 1:26:15]} 14. Rfd1 {[%clk 1:21:30]} 14... Nd7 {[%clk
1:23:30]} 15. Be3 {[%clk 1:19:02]} 15... Rc8 {[%clk 1:16:43]} 16. Bf1 {[%clk
1:15:32]} 16... Nc5 {[%clk 1:05:05]} 17. b4 {[%clk 1:09:34]} 17... Na4 {[%clk
1:00:57]} 18. Ne2 {[%clk 0:56:46]} 18... Nb2 {[%clk 0:57:07]} 19. Re1 {[%clk
0:56:49]} 19... b5 {[%clk 0:56:53]} 20. Nd4 {[%clk 0:53:24]} 20... Nxc4 {[%clk
0:57:02]} 21. Bxc4 {[%clk 0:53:40]} 21... bxc4 {[%clk 0:57:22]} 22. Rxc4 {[%clk
0:53:38]} 22... Bb5 {[%clk 0:57:05]} 23. Rxc8 {[%clk 0:53:05]} 23... Qxc8 {[%clk
0:57:29]} 24. Rc1 {[%clk 0:50:34]} 24... Qb7 {[%clk 0:56:28]} 25. Qc2 {[%clk
0:47:28]} 25... h6 {[%clk 0:53:03]} 26. a3 {[%clk 0:41:59]} 26... Bd7 {[%clk
0:45:58]} 27. Qc7 {[%clk 0:37:29]} 27... Rb8 {[%clk 0:44:52]} 28. Qxb7 {[%clk
0:35:33]} 28... Rxb7 {[%clk 0:44:19]} 29. Nc6 {[%clk 0:32:17]} 29... Bb2 {[%clk
0:38:26]} 30. Nxe7+ {[%clk 0:31:19]} 30... Kg7 {[%clk 0:33:08]} 31. Rb1 {[%clk
0:24:01]} 31... Bxa3 {[%clk 0:32:28]} 32. Bd4+ {[%clk 0:23:54]} 32... Kf8 {[%clk
0:31:56]} 33. Nd5 {[%clk 0:22:58]} 33... Be6 {[%clk 0:29:59]} 34. Bc3 {[%clk
0:19:37]} 34... Bxd5 {[%clk 0:29:07]} 35. exd5 {[%clk 0:20:01]} 35... a5 {[%clk
0:28:56]} 36. b5 {[%clk 0:19:53]} 36... Bc5+ {[%clk 0:29:03]} 37. Kf1 {[%clk
0:19:52]} 37... a4 {[%clk 0:29:13]} 38. Ke2 {[%clk 0:19:09]} 38... a3 {[%clk
0:29:21]} 39. Kd3 {[%clk 0:18:42]} 39... a2 {[%clk 0:28:54]} 40. Ra1 {[%clk
0:18:33]} 40... Rxb5 {[%clk 0:28:51]} 41. Rxa2 {[%clk 0:18:55]} 41... Rb1 {[%clk
0:27:56]} 42. Bf6 {[%clk 0:17:32]} 42... Rb3+ {[%clk 0:27:21]} 43. Kc4 {[%clk
0:16:15]} 43... Rb4+ {[%clk 0:27:43]} 44. Kc3 {[%clk 0:16:16]} 44... Rb8 {[%clk
0:27:44]} 45. h4 {[%clk 0:15:33]} 45... Bb6 {[%clk 0:22:25]} 46. Rb2 {[%clk
0:11:20]} 46... Ba5+ {[%clk 0:22:04]} 47. Kc4 {[%clk 0:11:14]} 47... Rxb2 {[%clk
0:21:44]} 48. Bxb2 {[%clk 0:11:23]} 48... Ke7 {[%clk 0:21:45]} 49. Bc1 {[%clk
0:10:43]} 49... Be1 {[%clk 0:19:20]} 50. h5 {[%clk 0:10:42]} 50... gxh5 {[%clk
0:18:18]} 51. Bxh6 {[%clk 0:10:55]} 51... f5 {[%clk 0:12:22]} 52. Bf4 {[%clk
0:09:07]} 52... Bh4 {[%clk 0:11:39]} 53. Kb5 {[%clk 0:09:08]} 53... Kd7 {[%clk
0:12:03]} 54. Bh6 {[%clk 0:09:15]} 54... Bf6 {[%clk 0:11:54]} 55. Kc4 {[%clk
0:09:31]} 55... Be5 {[%clk 0:11:13]} 56. Kd3 {[%clk 0:09:46]} 56... Bg3 {[%clk
0:11:18]} 57. Ke2 {[%clk 0:09:06]} 57... Kc7 {[%clk 0:11:12]} 58. Be3 {[%clk
0:08:35]} 58... Bh4 {[%clk 0:07:40]} 59. Bd4 {[%clk 0:08:20]} 59... Kd7 {[%clk
0:07:42]} 60. Bg7 {[%clk 0:07:58]} 60... Bg3 {[%clk 0:07:52]} 1/2-1/2

[Variant "Standard"]
[Site "Europe Echecs"]

[Event "Championnat du monde jeunes U12"]
[Date "2024.11.20"]
[White "Guo, Ethan"]
[Black "Matejka, Simon"]
[WhiteElo "2157"]
[BlackElo "1924"]
[Round "6.19"]
[Result "1-0"]
[TimeControl "5400+30"]

1. e4 {[%clk 1:30:59]} 1... e6 {[%clk 1:30:18]} 2. d4 {[%clk 1:31:20]} 2... d5
{[%clk 1:29:02]} 3. Nd2 {[%clk 1:31:48]} 3... c5 {[%clk 1:29:11]} 4. exd5 {[%clk
1:32:00]} 4... exd5 {[%clk 1:29:26]} 5. dxc5 {[%clk 1:29:31]} 5... Bxc5 {[%clk
1:29:10]} 6. Ngf3 {[%clk 1:28:43]} 6... Nc6 {[%clk 1:28:45]} 7. Nb3 {[%clk
1:28:27]} 7... Bb6 {[%clk 1:28:15]} 8. Bd3 {[%clk 1:19:32]} 8... Nf6 {[%clk
1:28:35]} 9. Qe2+ {[%clk 1:16:06]} 9... Be6 {[%clk 1:24:30]} 10. Ng5 {[%clk
1:15:41]} 10... Qd7 {[%clk 1:24:11]} 11. Be3 {[%clk 1:02:29]} 11... O-O {[%clk
1:18:14]} 12. Bxb6 {[%clk 1:01:26]} 12... axb6 {[%clk 1:18:41]} 13. O-O {[%clk
0:59:50]} 13... Bg4 {[%clk 1:17:53]} 14. f3 {[%clk 0:54:48]} 14... Be6 {[%clk
1:15:22]} 15. Qf2 {[%clk 0:53:23]} 15... Qc7 {[%clk 1:13:25]} 16. Rfe1 {[%clk
0:48:43]} 16... Bd7 {[%clk 1:08:57]} 17. Qh4 {[%clk 0:43:04]} 17... h6 {[%clk
1:08:54]} 18. Nh3 {[%clk 0:43:24]} 18... Ne5 {[%clk 1:04:35]} 19. Qf4 {[%clk
0:41:44]} 19... Rfe8 {[%clk 1:04:43]} 20. Nf2 {[%clk 0:40:49]} 20... Ra4 {[%clk
1:02:52]} 21. Qd2 {[%clk 0:36:20]} 21... Rh4 {[%clk 0:54:17]} 22. f4 {[%clk
0:36:20]} 22... Nxd3 {[%clk 0:52:26]} 23. Rxe8+ {[%clk 0:36:11]} 23... Bxe8
{[%clk 0:52:53]} 24. Nxd3 {[%clk 0:35:49]} 24... Ne4 {[%clk 0:52:07]} 25. Qe2
{[%clk 0:34:52]} 25... Bd7 {[%clk 0:48:28]} 26. c3 {[%clk 0:32:27]} 26... Qc4
{[%clk 0:41:44]} 27. g3 {[%clk 0:30:16]} 27... Rh3 {[%clk 0:38:33]} 28. Qe3
{[%clk 0:29:49]} 28... f6 {[%clk 0:36:31]} 29. Nd4 {[%clk 0:28:20]} 29... g6
{[%clk 0:30:55]} 30. f5 {[%clk 0:26:56]} 30... g5 {[%clk 0:30:12]} 31. Nf2
{[%clk 0:26:02]} 31... Nxf2 {[%clk 0:28:38]} 32. Qxf2 {[%clk 0:26:25]} 32... Qd3
{[%clk 0:28:25]} 33. Qg2 {[%clk 0:22:37]} 33... Qe3+ {[%clk 0:27:39]} 34. Kh1
{[%clk 0:22:32]} 34... Qe4 {[%clk 0:27:54]} 35. Qxe4 {[%clk 0:22:53]} 35... dxe4
{[%clk 0:28:20]} 36. Re1 {[%clk 0:23:06]} 36... Kf7 {[%clk 0:26:39]} 37. Rxe4
{[%clk 0:23:07]} 37... Rh5 {[%clk 0:26:46]} 38. Kg2 {[%clk 0:19:12]} 38... g4
{[%clk 0:26:40]} 39. Rxg4 {[%clk 0:17:27]} 39... Bxf5 {[%clk 0:27:06]} 40. Nxf5
{[%clk 0:17:25]} 40... Rxf5 {[%clk 0:27:34]} 41. Rb4 {[%clk 0:17:29]} 41... b5
{[%clk 0:27:49]} 42. h4 {[%clk 0:14:34]} 42... Ke6 {[%clk 0:27:22]} 43. Re4+
{[%clk 0:14:03]} 43... Kd5 {[%clk 0:26:40]} 44. Rd4+ {[%clk 0:14:14]} 44... Ke5
{[%clk 0:25:33]} 45. Rd7 {[%clk 0:13:34]} 45... Ke4 {[%clk 0:25:19]} 46. Rxb7
{[%clk 0:12:29]} 46... Kd3 {[%clk 0:25:27]} 47. g4 {[%clk 0:08:56]} 47... Re5
{[%clk 0:23:21]} 48. Kf3 {[%clk 0:09:05]} 48... Kc2 {[%clk 0:23:09]} 49. Kf4
{[%clk 0:09:14]} 49... Kxb2 {[%clk 0:23:28]} 50. a4 {[%clk 0:09:37]} 50... Kxc3
{[%clk 0:23:38]} 51. Rxb5 {[%clk 0:09:58]} 51... Re1 {[%clk 0:23:35]} 52. Kf5
{[%clk 0:10:06]} 52... Rf1+ {[%clk 0:23:50]} 53. Kg6 {[%clk 0:10:30]} 53... Rf4
{[%clk 0:23:30]} 54. Kh5 {[%clk 0:10:03]} 54... Rxa4 {[%clk 0:23:32]} 55. Rf5
{[%clk 0:10:24]} 55... Re4 {[%clk 0:22:24]} 56. Rxf6 {[%clk 0:10:35]} 56... Kd4
{[%clk 0:22:48]} 57. Rf5 {[%clk 0:07:29]} 57... Re6 {[%clk 0:23:04]} 58. g5
{[%clk 0:07:31]} 58... hxg5 {[%clk 0:23:24]} 59. hxg5 {[%clk 0:07:56]} 59... Ke4
{[%clk 0:23:22]} 60. Ra5 {[%clk 0:08:10]} 60... Kf4 {[%clk 0:23:06]} 61. g6
{[%clk 0:08:25]} 61... Rb6 {[%clk 0:23:10]} 62. g7 {[%clk 0:08:37]} 62... Rb8
{[%clk 0:23:32]} 63. Kg6 {[%clk 0:08:52]} 1-0

[Variant "Standard"]
[Site "Europe Echecs"]

[Event "Championnat du monde jeunes U12"]
[Date "2024.11.20"]
[White "Sobirov, Afruzbek"]
[Black "Belin, Anton"]
[WhiteElo "1928"]
[BlackElo "2138"]
[Round "6.20"]
[Result "0-1"]
[TimeControl "5400+30"]

1. e4 {[%clk 1:30:55]} 1... e6 {[%clk 1:30:30]} 2. d4 {[%clk 1:31:20]} 2... d5
{[%clk 1:30:18]} 3. Nc3 {[%clk 1:31:40]} 3... Nf6 {[%clk 1:30:16]} 4. Bg5 {[%clk
1:32:03]} 4... h6 {[%clk 1:30:22]} 5. Bxf6 {[%clk 1:32:27]} 5... Qxf6 {[%clk
1:30:05]} 6. a3 {[%clk 1:32:51]} 6... Qd8 {[%clk 1:27:59]} 7. Nf3 {[%clk
1:31:49]} 7... dxe4 {[%clk 1:23:28]} 8. Nxe4 {[%clk 1:31:55]} 8... Be7 {[%clk
1:22:52]} 9. Bd3 {[%clk 1:31:54]} 9... Nd7 {[%clk 1:20:08]} 10. Qe2 {[%clk
1:30:58]} 10... a6 {[%clk 1:14:38]} 11. O-O-O {[%clk 1:25:25]} 11... b5 {[%clk
1:10:54]} 12. Nc5 {[%clk 1:24:18]} 12... Bxc5 {[%clk 1:09:52]} 13. dxc5 {[%clk
1:24:35]} 13... Qe7 {[%clk 1:07:30]} 14. c6 {[%clk 1:10:14]} 14... Nf6 {[%clk
1:06:24]} 15. Ne5 {[%clk 1:07:16]} 15... Nd5 {[%clk 1:00:42]} 16. g3 {[%clk
1:05:40]} 16... Rb8 {[%clk 0:58:53]} 17. c3 {[%clk 1:02:06]} 17... Qc5 {[%clk
0:54:39]} 18. Qh5 {[%clk 0:58:20]} 18... O-O {[%clk 0:49:15]} 19. Bc2 {[%clk
0:53:46]} 19... a5 {[%clk 0:43:52]} 20. Ng4 {[%clk 0:53:25]} 20... Re8 {[%clk
0:41:20]} 21. Rd4 {[%clk 0:41:28]} 21... b4 {[%clk 0:29:56]} 22. Nf6+ {[%clk
0:32:14]} 22... Kf8 {[%clk 0:28:24]} 23. axb4 {[%clk 0:26:42]} 23... axb4 {[%clk
0:27:46]} 24. Nxe8 {[%clk 0:22:53]} 24... bxc3 {[%clk 0:26:48]} 25. bxc3 {[%clk
0:19:22]} 25... Qa3+ {[%clk 0:26:23]} 26. Kd1 {[%clk 0:17:09]} 26... Qa1+ {[%clk
0:26:27]} 27. Ke2 {[%clk 0:16:45]} 27... Ba6+ {[%clk 0:26:49]} 28. Bd3 {[%clk
0:08:38]} 28... Rb2+ {[%clk 0:26:51]} 29. Kf3 {[%clk 0:09:02]} 29... Qxh1+
{[%clk 0:27:13]} 30. Kg4 {[%clk 0:09:27]} 30... Kxe8 {[%clk 0:26:26]} 31. Qe5
{[%clk 0:07:53]} 31... Bxd3 {[%clk 0:24:35]} 32. Rxd3 {[%clk 0:07:58]} 32...
Nf6+ {[%clk 0:24:26]} 33. Kh3 {[%clk 0:06:31]} 33... Qf1+ {[%clk 0:24:51]} 34.
Kh4 {[%clk 0:06:51]} 34... g5+ {[%clk 0:25:16]} 0-1

[Variant "Standard"]
[Site "Europe Echecs"]

[Event "Championnat du monde jeunes U12"]
[Date "2024.11.20"]
[White "Ivancic, Ivan"]
[Black "Vinales Gonzalez, Enzo Mathias"]
[WhiteElo "2091"]
[BlackElo "1903"]
[Round "6.21"]
[Result "1/2-1/2"]
[TimeControl "5400+30"]

1. e4 {[%clk 1:30:57]} 1... c5 {[%clk 1:30:55]} 2. Nf3 {[%clk 1:31:22]} 2... d6
{[%clk 1:31:18]} 3. d4 {[%clk 1:31:36]} 3... cxd4 {[%clk 1:31:42]} 4. Nxd4
{[%clk 1:32:00]} 4... Nf6 {[%clk 1:32:07]} 5. Nc3 {[%clk 1:32:18]} 5... a6
{[%clk 1:32:25]} 6. f3 {[%clk 1:31:09]} 6... e5 {[%clk 1:32:47]} 7. Nb3 {[%clk
1:31:19]} 7... Be6 {[%clk 1:32:59]} 8. Be3 {[%clk 1:31:22]} 8... h5 {[%clk
1:32:19]} 9. Nd5 {[%clk 1:30:24]} 9... Bxd5 {[%clk 1:31:55]} 10. exd5 {[%clk
1:30:20]} 10... b5 {[%clk 1:30:35]} 11. a4 {[%clk 1:25:25]} 11... b4 {[%clk
1:30:27]} 12. a5 {[%clk 1:21:53]} 12... Nbd7 {[%clk 1:30:40]} 13. Qd2 {[%clk
1:17:18]} 13... Nc5 {[%clk 1:25:31]} 14. Nxc5 {[%clk 1:16:50]} 14... dxc5 {[%clk
1:25:09]} 15. Bc4 {[%clk 1:17:15]} 15... Bd6 {[%clk 1:12:56]} 16. O-O {[%clk
1:09:23]} 16... Qc7 {[%clk 1:10:01]} 17. h3 {[%clk 1:03:34]} 17... O-O {[%clk
1:05:35]} 18. c3 {[%clk 1:00:38]} 18... bxc3 {[%clk 0:53:08]} 19. bxc3 {[%clk
1:00:25]} 19... e4 {[%clk 0:52:23]} 20. Bg5 {[%clk 0:56:09]} 20... Rfe8 {[%clk
0:45:15]} 21. Bxf6 {[%clk 0:55:21]} 21... e3 {[%clk 0:44:19]} 22. Qe2 {[%clk
0:50:07]} 22... gxf6 {[%clk 0:29:53]} 23. f4 {[%clk 0:37:55]} 23... Bxf4 {[%clk
0:27:47]} 24. Qxh5 {[%clk 0:37:07]} 24... Qe5 {[%clk 0:27:43]} 25. Qg4+ {[%clk
0:36:44]} 25... Bg5 {[%clk 0:27:56]} 26. Be2 {[%clk 0:25:34]} 26... Kf8 {[%clk
0:14:35]} 27. c4 {[%clk 0:10:32]} 27... Rab8 {[%clk 0:09:58]} 28. Rad1 {[%clk
0:08:01]} 28... Rb2 {[%clk 0:07:15]} 29. Rb1 {[%clk 0:01:46]} 29... Reb8 {[%clk
0:03:30]} 30. Rxb2 {[%clk 0:02:10]} 30... Rxb2 {[%clk 0:03:54]} 31. Rd1 {[%clk
0:01:29]} 31... Rd2 {[%clk 0:01:18]} 32. Rb1 {[%clk 0:01:22]} 32... Qf4 {[%clk
0:00:50]} 33. Qxf4 {[%clk 0:00:31]} 33... Bxf4 {[%clk 0:01:12]} 34. Kf1 {[%clk
0:00:33]} 34... Bc7 {[%clk 0:00:45]} 35. Rb7 {[%clk 0:00:34]} 35... Bxa5 {[%clk
0:00:56]} 36. Ra7 {[%clk 0:00:33]} 36... Rc2 {[%clk 0:00:45]} 37. g3 {[%clk
0:00:33]} 37... Rc1+ {[%clk 0:00:47]} 38. Kg2 {[%clk 0:00:54]} 38... Bc3 {[%clk
0:00:37]} 39. Rxa6 {[%clk 0:01:04]} 39... Be5 {[%clk 0:00:38]} 1/2-1/2

[Variant "Standard"]
[Site "Europe Echecs"]

[Event "Championnat du monde jeunes U12"]
[Date "2024.11.20"]
[White "Yerzhanuly Yernur"]
[Black "Obidov, Biloliddin"]
[WhiteElo "1917"]
[BlackElo "2088"]
[Round "6.22"]
[Result "1-0"]
[TimeControl "5400+30"]

1. d4 {[%clk 1:30:49]} 1... Nf6 {[%clk 1:30:59]} 2. Bf4 {[%clk 1:31:00]} 2... d5
{[%clk 1:31:17]} 3. e3 {[%clk 1:31:23]} 3... c5 {[%clk 1:31:44]} 4. Nf3 {[%clk
1:31:40]} 4... Nc6 {[%clk 1:31:50]} 5. Nbd2 {[%clk 1:31:53]} 5... cxd4 {[%clk
1:31:38]} 6. exd4 {[%clk 1:31:57]} 6... Bf5 {[%clk 1:32:02]} 7. Bb5 {[%clk
1:31:02]} 7... Qb6 {[%clk 1:32:22]} 8. c4 {[%clk 1:31:06]} 8... dxc4 {[%clk
1:32:43]} 9. a4 {[%clk 1:31:11]} 9... Bd3 {[%clk 1:31:09]} 10. Ne5 {[%clk
1:30:04]} 10... e6 {[%clk 1:31:38]} 11. Ndxc4 {[%clk 1:28:07]} 11... Bb4+ {[%clk
1:31:48]} 12. Bd2 {[%clk 1:25:54]} 12... Bxc4 {[%clk 1:29:22]} 13. Nxc4 {[%clk
1:25:03]} 13... Bxd2+ {[%clk 1:29:51]} 14. Qxd2 {[%clk 1:25:22]} 14... Qc7
{[%clk 1:30:11]} 15. Qb4 {[%clk 1:12:15]} 15... Rd8 {[%clk 1:23:21]} 16. Ne5
{[%clk 0:56:22]} 16... Nd5 {[%clk 1:15:53]} 17. Qc5 {[%clk 0:54:28]} 17... Ne7
{[%clk 1:14:34]} 18. Qxa7 {[%clk 0:42:15]} 18... O-O {[%clk 1:13:53]} 19. Nxc6
{[%clk 0:42:35]} 19... Nxc6 {[%clk 1:14:17]} 20. Bxc6 {[%clk 0:43:02]} 20...
Qxc6 {[%clk 1:14:39]} 21. O-O {[%clk 0:43:26]} 21... Rd5 {[%clk 1:14:00]} 22.
Rac1 {[%clk 0:40:34]} 22... Qd7 {[%clk 1:13:48]} 23. Rc4 {[%clk 0:39:34]} 23...
Qe7 {[%clk 1:03:18]} 24. h3 {[%clk 0:36:04]} 24... h6 {[%clk 1:02:58]} 25. Rfc1
{[%clk 0:35:07]} 25... Rd7 {[%clk 0:58:20]} 26. Qc5 {[%clk 0:32:56]} 26... Qd8
{[%clk 0:55:30]} 27. Qb5 {[%clk 0:28:10]} 27... Kh7 {[%clk 0:52:29]} 28. Rc8
{[%clk 0:27:31]} 28... Qe7 {[%clk 0:48:47]} 29. Rxf8 {[%clk 0:27:57]} 29... Rxd4
{[%clk 0:44:30]} 30. Rfc8 {[%clk 0:28:09]} 30... Qd6 {[%clk 0:42:48]} 31. Qxb7
{[%clk 0:27:07]} 31... Rf4 {[%clk 0:42:27]} 32. a5 {[%clk 0:25:38]} 32... Qd2
{[%clk 0:42:42]} 33. Qb6 {[%clk 0:24:52]} 33... Rf5 {[%clk 0:41:49]} 34. a6
{[%clk 0:24:47]} 34... Rg5 {[%clk 0:42:18]} 35. a7 {[%clk 0:24:57]} 35... Qd5
{[%clk 0:42:33]} 36. a8=Q {[%clk 0:25:15]} 36... Rxg2+ {[%clk 0:42:21]} 37. Kf1
{[%clk 0:25:44]} 37... Rxf2+ {[%clk 0:40:00]} 38. Qxf2 {[%clk 0:26:11]} 38...
Qd3+ {[%clk 0:40:20]} 39. Ke1 {[%clk 0:26:32]} 1-0

[Variant "Standard"]
[Site "Europe Echecs"]